{"text_format":"3","workbook":"xlsx","n_sheets":2,"sheets":["Calcul subvention CB 2 ans","Calcul subvention CI seul"],"not_rendered":{"images":1,"defined_names":2,"comments":2},"read":"whole","date_system":"1900"}

{"sheet":"Calcul subvention CB 2 ans","index":0,"n_rows":63,"n_cols":12,"rows_kept":63,"merged":[[5,1,5,9],[7,1,7,9]]}
[]
[]
[]
[]
[]
[null,"Formation en apiculture - Appel à projets 2026 - Cours de base (cours d'initiation compris)"]
[]
[null,"Calcul du montant maximal de la subvention par projet"]
[]
[null,"Paramètres du cours",{"$nulls":8},"Subsidiable"]
[null,null,"Nb élèves",null,12,"(min. 12, max. 36)",{"$nulls":4},{"$f":"IF(E11<12,\"Non subsidiable\",IF(E11>36,36,E11))","v":12}]
[null,null,"Nb encadrants prat.",null,2,"(min. 1 / 9 élèves, max. 1/6 élèves subsidié)",{"$nulls":4},{"$f":"IF(K11=\"Non subsidiable\",\"Revoir Nb élèves\",IF(K11/E12>9,\"Revoir Nb encadrants prat.\",IF(K11/E12<6,\"Revoir Nb encadrants prat.\",E12)))","v":2}]
[null,null,"Nb heures théorie",null,50,"(min. 40, max. 80)",{"$nulls":4},{"$f":"IF(E13>80, \"Non subsidiable\",IF(E13<40,\"Non subsidiable\",IF(120-E14<40,\"Revoir Nb heures prat.\",IF(E13+E14>120,(120-E14),E13))))","v":50},{"$f":"IF(120-E14<40,\"Valeur non adaptable\",IF(E13+E14>120,\"Valeur adaptée\",\"\"))","v":""}]
[null,null,"Nb heures pratique",null,50,"(min. 40, max. 80)",{"$nulls":4},{"$f":"IF(E13>80,\"Revoir Nb heures théorie\",IF(E14>80,\"Non subsidiable\",IF(E14<40,\"Non subsidiable\",E14)))","v":50}]
[null,null,"Nb heures / 2 ans",null,{"$f":"E13+E14","v":100},"(théorie + pratique  = min. 100)",{"$nulls":4},{"$f":"IF(E15<100,\"Non subsidiable\",IF(E15>120,120,E15))","v":100},{"$f":"IF(120-E14<40,\"Valeur non adaptable\",IF(E15+E16>120,\"Valeur adaptée\",\"\"))","v":""}]
[{"$nulls":5},"(max. 120 subsidiables)"]
[null,"Calcul du subside maximal"]
[null,null,"Montant unitaire (€)",null,"Montant global (€)"]
[]
[null,"Forfait fonctionnement",{"v":1250,"d":"1,250.00"},"/ formation",{"v":1250,"d":"1,250.00"}]
[null,"Heures supérieures à 100",{"v":15,"d":"15.00"},"/ h",{"$f":"IF((E13+E14)>120,300,IF(K15=\"non subsidiable\",\"Non subsidiable\",((E13+E14)-100)*C21))","v":{"v":0,"d":"0.00"}},"(min. 0, max. 20 subsidiées)"]
[null,"Rémunérations conférenciers",{"v":43,"d":"43.00"},"/ h",{"$f":"IF(K13=\"Revoir Nb heures prat.\",\"Revoir Nb heures prat.\",IF(K13=\"Non subsidiable\",\"Non subsidiable\",$C22*K$13))","v":{"v":2150,"d":"2,150.00"}}]
[null,"Rémunérations encadrants prat.",{"v":43,"d":"43.00"},"/ h",{"$f":"IF(K14=\"Non subsidiable\",\"Non subsidiable\",IF(K12=\"Revoir Nb encadrants prat.\",\"Revoir Nb encadrants prat.\",$C23*E12*E14))","v":{"v":4300,"d":"4,300.00"}}]
[]
[null,"Total subside maximal pour l'entièreté de la formation","(2 ans min.)",null,{"$f":"IF(K12=\"Revoir Nb élèves\",\"Non subsidiable\",IF(K13=\"Non subsidiable\",\"Non subsidiable\",IF(K14=\"Non subsidiable\",\"Non subsidiable\",IF(K15=\"Non subsidiable\",\"Non subsidiable\",IF(K12=\"Revoir Nb encadrants prat.\",\"Non subsidiable\",SUM(E20:E23))))))","v":{"v":7700,"d":"7,700.00"}}]
[]
[]
[]
[null,"Rappel : dépenses éligibles (arrêté ministériel du 16/06/2016 portant application de l'arrêté du Gouvernement wallon du 16/06/2016 relatif à la formation en apiculture, art. 19) : "]
[]
[null,"A. Rémunérations des formateurs théoriques et pratiques 1"]
[null,"B. Frais de fonctionnement : "]
[null,"1. Location du local et charges y afférentes 2"]
[null,"2. Envois 3"]
[null,"3. Copies, impression des syllabus, (livres si accepté) 4"]
[null,"4. Déplacement des formateurs 5"]
[null,"5. Fonctionnement liés aux ruches du rucher pédagogique 6"]
[null,"6. Publications légales liés, le cas échéant, à la création de l’asbl centre de formation apicole 7"]
[null,"7. Assurance liés aux cours et aux conférences 8"]
[]
[null,"1 43,00 €/h"]
[null,"2 Dépenses éligibles :"]
[null,"> location du local (et du rucher) ;"]
[null,"> charges liées au local :"]
[null,"> eau, gaz, électricité, chauffage, nettoyage (éventuellement sur base d'un forfait par heure de cours, à valider par la Direction de la Qualité) ;"]
[null,"> assurances ;"]
[null,"> charges liées au rucher :"]
[null,"> entretien des abords (tonte, débroussaillage) ;"]
[null,"> assurances ;"]
[null,"3 Y compris les frais liés à un abonnement internet ou à l'hébergement d'un site, pour autant qu'il soit utile dans la communication aux élèves pour l'organisation du cours "]
[null,"4 Ycompris les livres ou autre support didactique du même type distribués aux élèves, pour autant que leur éligibilité ait été approuvée préalablement (sur demande) par la Direction de la Qualité"]
[null,"5 Indemnité kilométrique en vigueur :"]
[null,"> ajustée trimestriellement et alignée sur le fédéral depuis le 01/07/2022. Du 01/01/2026 au 31/03/2026 : 0,4326 € / km ;"]
[null,"> pour la suite, rechercher l'indemnité du trimestre concerné sur le site du SPF Finances https://bosa.belgium.be/fr en effectuant une recherche sur \"Indemnité kilométrique 202x\" puis cliquer sur le filtre \"Actualités\""]
[null,"6 Dépenses éligibles :"]
[null,"> abeilles de remplacement (colonies, nuclei, reines)"]
[null,"> sirop de nourrissement"]
[null,"> pâtes de stimulation"]
[null,"> cires de remplacement"]
[null,"> cadres de remplacement (cadres, fil)"]
[null,"> produits de traitement vétérinaires"]
[null,"7 Y compris les frais bancaires liés aux comptes de l'asbl et les frais comptables"]
[null,"8 Uniquement les assurances liées aux élèves (y compris les kits de secours) >>> les assurances liées au local sont à placer dans la rubrique \"Frais liés au local\""]

{"sheet":"Calcul subvention CI seul","index":1,"n_rows":52,"n_cols":12,"rows_kept":52,"merged":[[5,1,5,9],[7,0,7,9]]}
[]
[]
[]
[]
[]
[null,"Formation en apiculture - Appel à projets 2026 - Cours d'initiation seul (indépendant d'un cours de base)"]
[]
["Calcul du montant maximal de la subvention par projet"]
[]
[null,"Paramètres",{"$nulls":8},"Subsidiable"]
[null,null,"Nb élèves",null,8,"(min. 8, max. 36)",{"$nulls":4},{"$f":"IF(E11<8,\"Non subsidiable\",IF(E11>36,36,E11))","v":8}]
[null,null,"Nb encadrants prat.",null,1,"(min. 1 / 9 élèves, max. 1/5 élèves subsidié)",{"$nulls":4},{"$f":"IF(K11=\"Non subsidiable\",\"Revoir Nb élèves\",IF(K11/E12>9,\"Revoir Nb encadrants prat.\",IF(K11/E12<5,\"Revoir Nb encadrants prat.\",E12)))","v":1}]
[null,null,"Nb heures théorie",null,12,"(min. 12, max. 12 subsidiées)",{"$nulls":4},{"$f":"IF(E13<12,\"Non subsidiable\",12)","v":12},{"$f":"IF(E13>12,\"Valeur adaptée\",\"\")","v":""}]
[null,null,"Nb heures pratique",null,3,"(min. 3, max. 3 subsidiées)",{"$nulls":4},{"$f":"IF(E14<3,\"Non subsidiable\",3)","v":3},{"$f":"IF(E15>15,\"Valeur adaptée\",\"\")","v":""}]
[null,null,"Nb heures au total",null,{"$f":"E13+E14","v":15},"(min. 15)",{"$nulls":4},{"$f":"IF(E15<15,\"Non subsidiable\",IF(E15>15,15,E15))","v":15},{"$f":"IF(E15>15,\"Valeur adaptée\",\"\")","v":""}]
[{"$nulls":5},"(max. 15 subsidiables)"]
[null,"Calcul subside maximal"]
[null,null,"Montant unitaire (€)",null,"Montant global (€)"]
[]
[null,"Forfait fonctionnement",{"v":187,"d":"187.00"},"/ formation",{"v":187,"d":"187.00"}]
[null,"Rémunérations conférenciers",{"v":43,"d":"43.00"},"/ h",{"$f":"IF(K13=\"Non subsidiable\",\"Non subsidiable\",$C21*12)","v":{"v":516,"d":"516.00"}}]
[null,"Rémunérations encadrants prat.",{"v":43,"d":"43.00"},"/ h",{"$f":"IF(K14=\"Non subsidiable\",\"Non subsidiable\",IF(K12=\"Revoir Nb encadrants prat.\",\"Revoir Nb encadrants prat.\",$C22*3*E12))","v":{"v":129,"d":"129.00"}}]
[]
[null,"Total subside maximal pour l'entièreté de la formation",null,null,{"$f":"IF(K11=\"Non subsidiable\",\"Non subsidiable\",IF(K13=\"Non subsidiable\",\"Non subsidiable\",IF(K14=\"Non subsidiable\",\"Non subsidiable\",IF(K15=\"Non subsidiable\",\"Non subsidiable\",IF(K12=\"Revoir Nb encadrants prat.\",\"Non subsidiable\",SUM(E20:E22))))))","v":{"v":832,"d":"832.00"}}]
[null,"(15 h min.)"]
[]
[]
[null,"Rappel : dépenses éligibles (arrêté ministériel du 16/06/2016 portant application de l'arrêté du Gouvernement wallon du 16/06/2016 relatif à la formation en apiculture, art. 19) : "]
[]
[null,"A. Rémunérations des formateurs théoriques et pratiques 1"]
[null,"B. Frais de fonctionnement : "]
[null,"1. Location du local et charges y afférentes 2"]
[null,"2. Envois 3"]
[null,"3. Copies, impression des syllabus, (livres si accepté) 4"]
[null,"4. Déplacement des formateurs 5"]
[null,"5. Assurance liés aux cours et aux conférences 6"]
[]
[null,"1 43,00 €/h"]
[null,"2 Dépenses éligibles :"]
[null,"> location du local (et du rucher) ;"]
[null,"> charges liées au local :"]
[null,"> eau, gaz, électricité, chauffage, nettoyage (éventuellement sur base d'un forfait par heure de cours, à valider par la Direction de la Qualité) ;"]
[null,"> assurances ;"]
[null,"> charges liées au rucher :"]
[null,"> entretien des abords (tonte, débroussaillage) ;"]
[null,"> assurances ;"]
[null,"3 Y compris les frais liés à un abonnement internet ou à l'hébergement d'un site, pour autant qu'il soit utile dans la communication aux élèves pour l'organisation du cours "]
[null,"4 Ycompris les livres ou autre support didactique du même type distribués aux élèves, pour autant que leur éligibilité ait été approuvée préalablement (sur demande) par la Direction de la Qualité"]
[null,"5 Indemnité kilométrique en vigueur :"]
[null,"> ajustée trimestriellement et alignée sur le fédéral depuis le 01/07/2022. Du 01/01/2026 au 31/03/2026 : 0,4326 € / km ;"]
[null,"> pour la suite, rechercher l'indemnité du trimestre concerné sur le site du SPF Finances https://bosa.belgium.be/fr en effectuant une recherche sur \"Indemnité kilométrique 202x\" puis cliquer sur le filtre \"Actualités\""]
[null,"6 Uniquement les assurances liées aux élèves (y compris les kits de secours) >>> les assurances liées au local sont à placer dans la rubrique \"Frais liés au local\""]